[Event "Prague Open 2025"]
[Site "Prague"]
[Date "2025.01.10"]
[Round "1.1"]
[White "Harshavardhan G B"]
[Black "Jakubse, Tamae Severina"]
[Result "1-0"]
[Annotator "RC"]
[ECO "A57"]
[WhiteElo "2405"]
[BlackElo "1921"]
[PlyCount "81"]
[EventDate "2025.01.07"]
[EventType "swiss"]
[EventCountry "CZE"]
[SourceTitle "playchess.com"]
[Source "ChessBase"]
[SourceQuality "1"]
[TimeControl "40/5400+30:1800+30"]

1. d4 {[%emt 0:00:13]} Nf6 {[%emt 0:00:02]} 2. c4 {[%emt 0:00:24]} c5 {[%emt 0:00:06]} 3. d5 {[%emt 0:00:28]} b5 {[%emt 0:00:07]} 4. Nf3 {[%emt 0:00:08]} Bb7 {[%emt 0:01:37]} 5. a4 {[%emt 0:01:08]} Qa5+ {[%emt 0:00:20]} 6. Bd2 {[%emt 0:02:12]} b4 {[%emt 0:00:05]} 7. Qc2 {[%emt 0:02:16]} d6 {[%emt 0:08:37]} 8. e4 {[%emt 0:00:36]} Nbd7 {[%emt 0:01:00]} 9. g3 {[%emt 0:03:06]} g6 {[%emt 0:00:07]} 10. Bg2 {[%emt 0:00:12]} Bg7 {[%emt 0:00:06]} 11. O-O {[%emt 0:00:14]} Qc7 {[%emt 0:06:40]} 12. h3 {[%emt 0:00:40]} a5 {[%emt 0:02:18]} 13. Be3 {[%emt 0:00:20]} O-O-O {[%emt 0:00:59]} 14. Nbd2 {[%emt 0:00:28]} h6 {[%emt 0:06:28]} 15. Nh4 {[%emt 0:02:32]} Nh7 {[%emt 0:16:40]} 16. f4 {[%emt 0:00:48]} Nhf8 {[%emt 0:00:22]} 17. Rae1 {[%emt 0:01:22]} e6 {[%emt 0:01:53]} 18. b3 {[%emt 0:01:18]} Kb8 {[%emt 0:05:06]} 19. Nhf3 {[%emt 0:06:02]} Bc3 {[%emt 0:08:54]} 20. Bf2 {[%emt 0:02:38]} e5 {[%emt 0:05:39]} 21. Re2 {[%emt 0:03:30]} Bxd2 {[%emt 0:04:40]} 22. Qxd2 {[%emt 0:00:24]} f6 {[%emt 0:01:12]} 23. h4 {[%emt 0:05:20]} Re8 {[%emt 0:05:36]} 24. Bh3 {[%emt 0:04:04]} Qd8 {[%emt 0:00:49]} 25. Be3 {[%emt 0:02:10]} h5 {[%emt 0:00:46]} 26. Qc2 {[%emt 0:01:48]} Bc8 {[%emt 0:02:07]} 27. Kh2 {[%emt 0:00:20]} Rg8 {[%emt 0:04:41]} 28. Ref2 {[%emt 0:05:44]} Nh7 {[%emt 0:01:27]} 29. Be6 {[%emt 0:01:34]} Rg7 {[%emt 0:01:32]} 30. fxe5 {[%emt 0:04:06]} Nxe5 {[%emt 0:01:23]} 31. Nxe5 {[%emt 0:02:00]} fxe5 {[%emt 0:01:31]} 32. Bf7 {[%emt 0:11:12]} Qd7 {[%emt 0:02:02]} 33. Bh6 {[%emt 0:02:14]} Rxf7 {[%emt 0:02:07]} 34. Rxf7 {[%emt 0:00:14]} Re7 {[%emt 0:00:04]} 35. Rxe7 {[%emt 0:00:26]} Qxe7 {[%emt 0:00:05]} 36. Qf2 {[%emt 0:00:36]} Qd7 {[%emt 0:00:15]} 37. Kg1 {[%emt 0:00:14]} Qh3 {[%emt 0:02:37]} 38. Qe3 {[%emt 0:01:08]} Qd7 {[%emt 0:01:23]} 39. Rf3 {[%emt 0:00:36]} g5 {[%emt 0:04:14]} 40. hxg5 {[%emt 0:00:22]} h4 {[%emt 0:00:07]} 41. g6 {[%emt 0:30:32]} 1-0

[Event "Prague Open 2025"]
[Site "Prague"]
[Date "2025.01.10"]
[Round "1.2"]
[White "Mrazek, Adam"]
[Black "Senthil Maran K"]
[Result "0-1"]
[Annotator "RC"]
[ECO "A11"]
[WhiteElo "1919"]
[BlackElo "2398"]
[PlyCount "56"]
[EventDate "2025.01.07"]
[EventType "swiss"]
[EventCountry "CZE"]
[SourceTitle "playchess.com"]
[Source "ChessBase"]
[SourceQuality "1"]
[TimeControl "40/5400+30:1800+30"]

1. c4 {[%emt 0:00:05]} c6 {[%emt 0:01:37]} 2. g3 {[%emt 0:00:23]} d5 {[%emt 0:00:15]} 3. Nf3 {[%emt 0:00:09]} g6 {[%emt 0:06:46]} 4. Bg2 {[%emt 0:00:33]} Bg7 {[%emt 0:00:36]} 5. d4 {[%emt 0:02:10]} dxc4 {[%emt 0:00:30]} 6. O-O {[%emt 0:02:36]} Nf6 {[%emt 0:10:30]} 7. Qc2 {[%emt 0:16:37]} b5 {[%emt 0:13:00]} 8. Nbd2 {[%emt 0:09:25]} Nd5 {[%emt 0:06:25]} 9. a3 {[%emt 0:29:20]} O-O {[%emt 0:03:49]} 10. e4 {[%emt 0:01:39]} Nc7 {[%emt 0:07:24]} 11. b3 {[%emt 0:03:35]} c5 {[%emt 0:02:14]} 12. bxc4 {[%emt 0:05:00]} cxd4 {[%emt 0:03:36]} 13. Rb1 {[%emt 0:05:18]} d3 {[%emt 0:03:19]} 14. Qb3 {[%emt 0:04:01]} Be6 {[%emt 0:11:14]} 15. Ng5 {[%emt 0:04:05]} bxc4 {[%emt 0:11:47]} 16. Nxc4 {[%emt 0:05:01]} Nc6 {[%emt 0:00:43]} 17. Nxe6 {[%emt 0:01:21]} Nxe6 {[%emt 0:00:15]} 18. Be3 {[%emt 0:01:40]} Ncd4 {[%emt 0:02:43]} 19. Qa2 {[%emt 0:01:47]} Ne2+ {[%emt 0:00:30]} 20. Kh1 {[%emt 0:01:47]} Nc3 {[%emt 0:00:11]} 21. Qd2 {[%emt 0:02:28]} Nxb1 {[%emt 0:00:35]} 22. Rxb1 {[%emt 0:00:16]} Rc8 {[%emt 0:01:29]} 23. Rc1 {[%emt 0:01:40]} Nc5 {[%emt 0:02:19]} 24. Qb4 {[%emt 0:00:48]} Bd4 {[%emt 0:05:39]} 25. Rd1 {[%emt 0:00:37]} Bxe3 {[%emt 0:00:58]} 26. Nxe3 {[%emt 0:00:09]} e6 {[%emt 0:01:13]} 27. e5 {[%emt 0:00:53]} h5 {[%emt 0:02:00]} 28. Nc4 {[%emt 0:00:28]} Qd4 {[%emt 0:01:34]} 0-1

[Event "Prague Open 2025"]
[Site "Prague"]
[Date "2025.01.10"]
[Round "1.3"]
[White "Jain Kashish Manoj"]
[Black "Koper, Stefan"]
[Result "1-0"]
[Annotator "RC"]
[ECO "C11"]
[WhiteElo "2363"]
[BlackElo "1917"]
[PlyCount "59"]
[EventDate "2025.01.07"]
[EventType "swiss"]
[EventCountry "CZE"]
[SourceTitle "playchess.com"]
[Source "ChessBase"]
[SourceQuality "1"]
[TimeControl "40/5400+30:1800+30"]

1. e4 {[%emt 0:00:09]} e6 {[%emt 0:04:43]} 2. d4 {[%emt 0:01:05]} d5 {[%emt 0:00:08]} 3. Nc3 {[%emt 0:00:05]} Nf6 {[%emt 0:00:07]} 4. e5 {[%emt 0:00:06]} Nfd7 {[%emt 0:00:10]} 5. f4 {[%emt 0:00:09]} c5 {[%emt 0:00:07]} 6. Nf3 {[%emt 0:00:06]} Nc6 {[%emt 0:00:06]} 7. Be3 {[%emt 0:00:06]} Qb6 {[%emt 0:00:41]} 8. a3 {[%emt 0:02:23]} cxd4 {[%emt 0:01:18]} 9. Nxd4 {[%emt 0:00:08]} Nxd4 {[%emt 0:00:18]} 10. Bxd4 {[%emt 0:00:10]} Bc5 {[%emt 0:02:30]} 11. Bxc5 {[%emt 0:09:45]} Qxc5 {[%emt 0:07:18]} 12. Qd2 {[%emt 0:05:07]} a6 {[%emt 0:00:47]} 13. O-O-O {[%emt 0:02:25]} b5 {[%emt 0:01:09]} 14. Qd4 {[%emt 0:16:50]} Qxd4 {[%emt 0:05:29]} 15. Rxd4 {[%emt 0:00:02]} Rb8 {[%emt 0:06:48]} 16. Be2 {[%emt 0:10:03]} O-O {[%emt 0:01:07]} 17. b3 {[%emt 0:08:16]} g6 {[%emt 0:03:55]} 18. Kb2 {[%emt 0:01:52]} Kg7 {[%emt 0:00:52]} 19. g3 {[%emt 0:03:02]} h5 {[%emt 0:06:26]} 20. Ra1 {[%emt 0:01:51]} Nc5 {[%emt 0:04:47]} 21. b4 {[%emt 0:05:37]} Na4+ {[%emt 0:07:45]} 22. Nxa4 {[%emt 0:00:11]} bxa4 {[%emt 0:00:02]} 23. Rc1 {[%emt 0:05:09]} a5 {[%emt 0:01:20]} 24. Ka2 {[%emt 0:00:29]} axb4 {[%emt 0:00:15]} 25. Rxb4 {[%emt 0:01:58]} Bd7 {[%emt 0:00:26]} 26. Bd3 {[%emt 0:01:15]} Rbc8 {[%emt 0:05:11]} 27. Rcb1 {[%emt 0:00:12]} Rc5 {[%emt 0:01:15]} 28. Rb7 {[%emt 0:01:37]} Rd8 {[%emt 0:00:32]} 29. R1b6 {[%emt 0:00:38]} Rc6 {[%emt 0:04:24]} 30. Rxd7 {[%emt 0:00:27]} 1-0

[Event "Prague Open 2025"]
[Site "Prague"]
[Date "2025.01.10"]
[Round "1.4"]
[White "Brandl, Michael"]
[Black "Lewtak, Damian"]
[Result "0-1"]
[Annotator "RC"]
[ECO "A10"]
[WhiteElo "1917"]
[BlackElo "2359"]
[PlyCount "60"]
[EventDate "2025.01.07"]
[EventType "swiss"]
[EventCountry "CZE"]
[SourceTitle "playchess.com"]
[Source "ChessBase"]
[SourceQuality "1"]
[TimeControl "40/5400+30:1800+30"]

1. c4 {[%emt 0:00:03]} b6 {[%emt 0:00:23]} 2. Nc3 {[%emt 0:00:47]} Bb7 {[%emt 0:00:05]} 3. e4 {[%emt 0:03:44]} e5 {[%emt 0:00:38]} 4. g3 {[%emt 0:01:27]} Nc6 {[%emt 0:02:32]} 5. Bg2 {[%emt 0:00:28]} Bc5 {[%emt 0:02:43]} 6. Nge2 {[%emt 0:01:26]} h5 {[%emt 0:06:33]} 7. h4 {[%emt 0:20:40]} Nf6 {[%emt 0:02:46]} 8. Nd5 {[%emt 0:03:59]} Ng4 {[%emt 0:05:40]} 9. O-O {[%emt 0:05:32]} Nd4 {[%emt 0:05:46]} 10. Nec3 {[%emt 0:09:28]} g5 {[%emt 0:15:13]} 11. hxg5 {[%emt 0:15:05]} c6 {[%emt 0:02:05]} 12. b4 {[%emt 0:14:01]} Bf8 {[%emt 0:06:33]} 13. Ne3 {[%emt 0:11:30]} Qxg5 {[%emt 0:02:53]} 14. d3 {[%emt 0:01:34]} Nxe3 {[%emt 0:02:59]} 15. Bxe3 {[%emt 0:00:11]} Qg6 {[%emt 0:00:05]} 16. Bxd4 {[%emt 0:04:25]} exd4 {[%emt 0:00:06]} 17. Ne2 {[%emt 0:00:11]} h4 {[%emt 0:06:06]} 18. Qe1 {[%emt 0:00:47]} Bg7 {[%emt 0:14:40]} 19. f4 {[%emt 0:02:01]} O-O-O {[%emt 0:00:58]} 20. c5 {[%emt 0:01:38]} Rdg8 {[%emt 0:00:53]} 21. Rf3 {[%emt 0:01:05]} Qh5 {[%emt 0:01:18]} 22. e5 {[%emt 0:00:34]} f6 {[%emt 0:04:08]} 23. Nxd4 {[%emt 0:00:49]} fxe5 {[%emt 0:00:18]} 24. fxe5 {[%emt 0:00:26]} Bxe5 {[%emt 0:01:03]} 25. Nf5 {[%emt 0:00:25]} Re8 {[%emt 0:01:30]} 26. Rd1 {[%emt 0:00:39]} Bd4+ {[%emt 0:08:01]} 27. Nxd4 {[%emt 0:00:05]} Rxe1+ {[%emt 0:00:04]} 28. Rxe1 {[%emt 0:00:03]} bxc5 {[%emt 0:00:42]} 29. Rf5 {[%emt 0:00:05]} Qg6 {[%emt 0:00:31]} 30. bxc5 {[%emt 0:00:18]} Qxg3 {[%emt 0:00:50]} 0-1

[Event "Prague Open 2025"]
[Site "Prague"]
[Date "2025.01.10"]
[Round "1.5"]
[White "Horak, Martin"]
[Black "Kolar, Dan"]
[Result "1-0"]
[Annotator "RC"]
[ECO "B24"]
[WhiteElo "2357"]
[BlackElo "1915"]
[PlyCount "35"]
[EventDate "2025.01.07"]
[EventType "swiss"]
[EventCountry "CZE"]
[SourceTitle "playchess.com"]
[Source "ChessBase"]
[SourceQuality "1"]
[TimeControl "40/5400+30:1800+30"]

1. e4 {[%emt 0:00:04]} c5 {[%emt 0:00:03]} 2. Nc3 {[%emt 0:00:09]} Nc6 {[%emt 0:00:04]} 3. Bb5 {[%emt 0:00:07]} g6 {[%emt 0:01:31]} 4. Bxc6 {[%emt 0:01:16]} dxc6 {[%emt 0:00:08]} 5. d3 {[%emt 0:00:19]} Bg7 {[%emt 0:00:31]} 6. Be3 {[%emt 0:01:01]} b6 {[%emt 0:04:25]} 7. Qd2 {[%emt 0:00:41]} e5 {[%emt 0:09:28]} 8. f4 {[%emt 0:02:03]} exf4 {[%emt 0:06:06]} 9. Bxf4 {[%emt 0:00:07]} Bh6 {[%emt 0:02:31]} 10. Nf3 {[%emt 0:03:02]} Bg7 {[%emt 0:13:43]} 11. O-O {[%emt 0:11:49]} Ne7 {[%emt 0:06:26]} 12. Bh6 {[%emt 0:06:11]} O-O {[%emt 0:00:21]} 13. Qf4 {[%emt 0:00:39]} Bb7 {[%emt 0:22:32]} 14. Bxg7 {[%emt 0:08:14]} Kxg7 {[%emt 0:00:15]} 15. Ng5 {[%emt 0:00:04]} Qd4+ {[%emt 0:13:10]} 16. Kh1 {[%emt 0:00:08]} Ng8 {[%emt 0:00:10]} 17. Qc7 {[%emt 0:01:44]} Qd8 {[%emt 0:01:42]} 18. Ne6+ {[%emt 0:00:12]} 1-0

[Event "Prague Open 2025"]
[Site "Prague"]
[Date "2025.01.10"]
[Round "1.6"]
[White "Pang, Kay Yan Eden"]
[Black "Lalic, Bogdan"]
[Result "0-1"]
[Annotator "RC"]
[ECO "E10"]
[WhiteElo "1915"]
[BlackElo "2321"]
[PlyCount "74"]
[EventDate "2025.01.07"]
[EventType "swiss"]
[EventCountry "CZE"]
[SourceTitle "playchess.com"]
[Source "ChessBase"]
[SourceQuality "1"]
[TimeControl "40/5400+30:1800+30"]

1. d4 {[%emt 0:00:04]} Nf6 {[%emt 0:07:13]} 2. c4 {[%emt 0:00:08]} e6 {[%emt 0:00:09]} 3. Nf3 {[%emt 0:00:12]} c5 {[%emt 0:00:09]} 4. g3 {[%emt 0:02:01]} cxd4 {[%emt 0:00:10]} 5. Nxd4 {[%emt 0:00:52]} Qc7 {[%emt 0:02:43]} 6. Bg2 {[%emt 0:12:31]} Qxc4 {[%emt 0:04:09]} 7. O-O {[%emt 0:01:34]} Nc6 {[%emt 0:00:31]} 8. Nxc6 {[%emt 0:04:26]} dxc6 {[%emt 0:00:10]} 9. b3 {[%emt 0:00:41]} Qa6 {[%emt 0:05:51]} 10. Bb2 {[%emt 0:03:36]} Be7 {[%emt 0:00:20]} 11. Nd2 {[%emt 0:01:58]} O-O {[%emt 0:00:13]} 12. Nc4 {[%emt 0:04:44]} Rd8 {[%emt 0:00:41]} 13. Qc2 {[%emt 0:01:20]} Bd7 {[%emt 0:00:26]} 14. e4 {[%emt 0:08:03]} Be8 {[%emt 0:02:33]} 15. Rfd1 {[%emt 0:06:52]} b5 {[%emt 0:01:57]} 16. Bxf6 {[%emt 0:06:58]} gxf6 {[%emt 0:02:59]} 17. Ne3 {[%emt 0:01:34]} Qa3 {[%emt 0:02:42]} 18. Ng4 {[%emt 0:07:17]} h5 {[%emt 0:01:10]} 19. Ne3 {[%emt 0:02:13]} Qc5 {[%emt 0:10:54]} 20. Qe2 {[%emt 0:01:51]} Rxd1+ {[%emt 0:01:08]} 21. Rxd1 {[%emt 0:00:18]} Rd8 {[%emt 0:00:12]} 22. Rxd8 {[%emt 0:03:02]} Bxd8 {[%emt 0:00:02]} 23. Bf3 {[%emt 0:02:02]} Qe5 {[%emt 0:04:35]} 24. Qd1 {[%emt 0:08:10]} Bb6 {[%emt 0:01:32]} 25. Ng2 {[%emt 0:00:46]} Qb2 {[%emt 0:00:56]} 26. Qe2 {[%emt 0:02:11]} Qa1+ {[%emt 0:02:09]} 27. Ne1 {[%emt 0:01:51]} Ba5 {[%emt 0:03:00]} 28. Kf1 {[%emt 0:00:18]} h4 {[%emt 0:01:05]} 29. gxh4 {[%emt 0:00:50]} c5 {[%emt 0:01:02]} 30. Qd1 {[%emt 0:03:45]} Qxa2 {[%emt 0:01:10]} 31. e5 {[%emt 0:02:11]} Qd2 {[%emt 0:05:39]} 32. Qxd2 {[%emt 0:05:46]} Bxd2 {[%emt 0:00:05]} 33. exf6 {[%emt 0:00:38]} Bc3 {[%emt 0:00:59]} 34. Ke2 {[%emt 0:02:32]} Bxf6 {[%emt 0:00:08]} 35. h5 {[%emt 0:00:29]} a5 {[%emt 0:00:30]} 36. Kd3 {[%emt 0:00:51]} Bd4 {[%emt 0:00:15]} 37. Ke2 {[%emt 0:02:00]} a4 {[%emt 0:00:18]} 0-1

[Event "Prague Open 2025"]
[Site "Prague"]
[Date "2025.01.10"]
[Round "1.7"]
[White "Colijn, Stefan"]
[Black "Bartoszczuk, Adam"]
[Result "1-0"]
[Annotator "RC"]
[ECO "A45"]
[WhiteElo "2315"]
[BlackElo "1908"]
[PlyCount "69"]
[EventDate "2025.01.07"]
[EventType "swiss"]
[EventCountry "CZE"]
[SourceTitle "playchess.com"]
[Source "ChessBase"]
[SourceQuality "1"]
[TimeControl "40/5400+30:1800+30"]

1. d4 {[%emt 0:00:04]} Nf6 {[%emt 0:00:12]} 2. Bf4 {[%emt 0:00:07]} d5 {[%emt 0:00:43]} 3. e3 {[%emt 0:00:06]} e6 {[%emt 0:00:41]} 4. Nd2 {[%emt 0:00:32]} Bd6 {[%emt 0:01:13]} 5. Bg3 {[%emt 0:00:24]} O-O {[%emt 0:01:02]} 6. Bd3 {[%emt 0:00:38]} c5 {[%emt 0:05:33]} 7. c3 {[%emt 0:00:07]} Qc7 {[%emt 0:09:06]} 8. dxc5 {[%emt 0:06:00]} Qxc5 {[%emt 0:01:27]} 9. Ngf3 {[%emt 0:04:51]} Nbd7 {[%emt 0:02:46]} 10. Bxd6 {[%emt 0:22:28]} Qxd6 {[%emt 0:00:14]} 11. O-O {[%emt 0:00:59]} Rd8 {[%emt 0:05:06]} 12. e4 {[%emt 0:05:11]} Qc7 {[%emt 0:06:08]} 13. Qe2 {[%emt 0:01:43]} Nc5 {[%emt 0:24:22]} 14. e5 {[%emt 0:08:39]} Nxd3 {[%emt 0:03:21]} 15. Qxd3 {[%emt 0:01:17]} Nd7 {[%emt 0:00:40]} 16. Rfe1 {[%emt 0:01:02]} h6 {[%emt 0:00:47]} 17. Re3 {[%emt 0:07:53]} b6 {[%emt 0:03:33]} 18. Qd4 {[%emt 0:01:33]} Ba6 {[%emt 0:03:31]} 19. b4 {[%emt 0:07:10]} Rac8 {[%emt 0:02:37]} 20. Rae1 {[%emt 0:06:17]} Bc4 {[%emt 0:07:13]} 21. a3 {[%emt 0:02:55]} a5 {[%emt 0:00:52]} 22. Qg4 {[%emt 0:01:22]} axb4 {[%emt 0:00:38]} 23. axb4 {[%emt 0:00:19]} Ra8 {[%emt 0:01:46]} 24. Nd4 {[%emt 0:00:38]} Nf8 {[%emt 0:04:13]} 25. Rg3 {[%emt 0:04:16]} Qxe5 {[%emt 0:01:25]} 26. N2f3 {[%emt 0:03:26]} Qf6 {[%emt 0:00:26]} 27. h4 {[%emt 0:00:36]} Ra2 {[%emt 0:03:37]} 28. Nc6 {[%emt 0:05:27]} Rda8 {[%emt 0:02:17]} 29. Nce5 {[%emt 0:00:37]} Bb5 {[%emt 0:01:09]} 30. Qh5 {[%emt 0:00:43]} Re2 {[%emt 0:01:35]} 31. Ng4 {[%emt 0:00:42]} Rxe1+ {[%emt 0:06:09]} 32. Nxe1 {[%emt 0:00:01]} Qf4 {[%emt 0:00:24]} 33. Nxh6+ {[%emt 0:00:13]} Kh8 {[%emt 0:00:04]} 34. Nxf7+ {[%emt 0:00:12]} Kg8 {[%emt 0:00:04]} 35. Rf3 1-0

[Event "Prague Open 2025"]
[Site "Prague"]
[Date "2025.01.10"]
[Round "1.8"]
[White "Ejsymont, Blanka"]
[Black "Marek, Matyas"]
[Result "0-1"]
[Annotator "RC"]
[ECO "B06"]
[WhiteElo "1904"]
[BlackElo "2314"]
[PlyCount "98"]
[EventDate "2025.01.07"]
[EventType "swiss"]
[EventCountry "CZE"]
[SourceTitle "playchess.com"]
[Source "ChessBase"]
[SourceQuality "1"]
[TimeControl "40/5400+30:1800+30"]

1. e4 {[%emt 0:00:03]} g6 {[%emt 0:00:17]} 2. d4 {[%emt 0:00:25]} Bg7 {[%emt 0:00:03]} 3. Be3 {[%emt 0:00:38]} d6 {[%emt 0:02:05]} 4. Nc3 {[%emt 0:00:08]} a6 {[%emt 0:01:08]} 5. Qd2 {[%emt 0:01:29]} b5 {[%emt 0:00:32]} 6. a3 {[%emt 0:00:17]} Bb7 {[%emt 0:00:22]} 7. f3 {[%emt 0:02:58]} Nd7 {[%emt 0:00:27]} 8. O-O-O {[%emt 0:04:25]} Rc8 {[%emt 0:02:28]} 9. d5 {[%emt 0:07:17]} c6 {[%emt 0:03:02]} 10. dxc6 {[%emt 0:00:48]} Bxc6 {[%emt 0:01:01]} 11. Bd4 {[%emt 0:02:43]} Bxd4 {[%emt 0:02:49]} 12. Qxd4 {[%emt 0:00:05]} Ngf6 {[%emt 0:00:07]} 13. g4 {[%emt 0:04:28]} Qb6 {[%emt 0:00:13]} 14. Nge2 {[%emt 0:05:11]} Bb7 {[%emt 0:04:02]} 15. h4 {[%emt 0:05:02]} Qxd4 {[%emt 0:02:58]} 16. Nxd4 {[%emt 0:00:33]} Ne5 {[%emt 0:01:52]} 17. Be2 {[%emt 0:04:36]} Nc4 {[%emt 0:07:15]} 18. h5 {[%emt 0:12:31]} Nxa3 19. hxg6 {[%emt 0:10:04]} fxg6 {[%emt 0:13:01]} 20. Bd3 {[%emt 0:03:58]} Nc4 {[%emt 0:03:47]} 21. Kb1 {[%emt 0:05:58]} Ne5 {[%emt 0:03:23]} 22. Rdg1 {[%emt 0:01:07]} Nxd3 {[%emt 0:06:19]} 23. cxd3 {[%emt 0:00:08]} e5 {[%emt 0:00:07]} 24. Nde2 {[%emt 0:01:02]} O-O {[%emt 0:00:44]} 25. Nd1 {[%emt 0:03:56]} d5 {[%emt 0:01:38]} 26. Ne3 {[%emt 0:03:00]} dxe4 {[%emt 0:01:11]} 27. dxe4 {[%emt 0:01:50]} Nxe4 {[%emt 0:00:07]} 28. fxe4 {[%emt 0:00:50]} Bxe4+ {[%emt 0:00:04]} 29. Ka2 {[%emt 0:00:17]} Bxh1 {[%emt 0:00:32]} 30. Rxh1 {[%emt 0:00:02]} Rf3 {[%emt 0:01:19]} 31. Nd5 {[%emt 0:00:49]} Rc2 {[%emt 0:00:42]} 32. Nec3 {[%emt 0:02:15]} Rff2 {[%emt 0:01:13]} 33. Nd1 {[%emt 0:00:38]} Rh2 {[%emt 0:02:12]} 34. Rf1 {[%emt 0:03:27]} Kg7 {[%emt 0:02:27]} 35. Kb3 {[%emt 0:03:26]} Rc1 {[%emt 0:01:29]} 36. N5e3 {[%emt 0:01:16]} a5 {[%emt 0:02:20]} 37. Rf3 {[%emt 0:03:44]} Rd2 {[%emt 0:00:17]} 38. Nc3 {[%emt 0:00:51]} a4+ {[%emt 0:00:23]} 39. Ka2 {[%emt 0:00:15]} Rxc3 {[%emt 0:00:30]} 40. Nf5+ {[%emt 0:00:23]} gxf5 {[%emt 0:00:05]} 41. Rxc3 {[%emt 0:30:02]} fxg4 {[%emt 0:30:23]} 42. Rc5 {[%emt 0:00:02]} Kf6 {[%emt 0:00:21]} 43. Rxb5 {[%emt 0:00:04]} g3 {[%emt 0:00:06]} 44. Rb4 {[%emt 0:00:05]} g2 {[%emt 0:00:09]} 45. Rg4 {[%emt 0:00:04]} h5 {[%emt 0:00:05]} 46. Rg8 {[%emt 0:00:02]} h4 {[%emt 0:00:06]} 47. Ka3 {[%emt 0:00:13]} h3 {[%emt 0:00:04]} 48. Kxa4 {[%emt 0:00:08]} h2 {[%emt 0:00:06]} 49. b4 {[%emt 0:00:02]} g1=Q {[%emt 0:00:07]} 0-1

[Event "Prague Open 2025"]
[Site "Prague"]
[Date "2025.01.10"]
[Round "1.9"]
[White "Golis, Wiktor"]
[Black "Anissimova, Mariya"]
[Result "1-0"]
[Annotator "RC"]
[ECO "C78"]
[WhiteElo "2314"]
[BlackElo "1893"]
[PlyCount "43"]
[EventDate "2025.01.07"]
[EventType "swiss"]
[EventCountry "CZE"]
[SourceTitle "playchess.com"]
[Source "ChessBase"]
[SourceQuality "1"]
[TimeControl "40/5400+30:1800+30"]

1. e4 {[%emt 0:00:03]} e5 {[%emt 0:00:05]} 2. Nf3 {[%emt 0:00:07]} Nc6 {[%emt 0:00:05]} 3. Bb5 {[%emt 0:00:13]} a6 {[%emt 0:00:48]} 4. Ba4 {[%emt 0:00:05]} Nf6 {[%emt 0:00:30]} 5. O-O {[%emt 0:00:07]} b5 {[%emt 0:00:09]} 6. Bb3 {[%emt 0:00:04]} Bc5 {[%emt 0:00:06]} 7. a4 {[%emt 0:00:21]} Rb8 {[%emt 0:01:26]} 8. axb5 {[%emt 0:00:48]} axb5 {[%emt 0:00:07]} 9. Nxe5 {[%emt 0:00:22]} Nxe5 {[%emt 0:01:40]} 10. d4 {[%emt 0:00:10]} Bxd4 {[%emt 0:00:04]} 11. Qxd4 {[%emt 0:00:04]} d6 {[%emt 0:04:23]} 12. f4 {[%emt 0:00:41]} Neg4 {[%emt 0:14:09]} 13. e5 {[%emt 0:09:55]} dxe5 {[%emt 0:15:38]} 14. Qxd8+ {[%emt 0:00:36]} Kxd8 {[%emt 0:00:04]} 15. h3 {[%emt 0:00:07]} Nh6 {[%emt 0:02:10]} 16. fxe5 {[%emt 0:00:04]} Nd7 {[%emt 0:00:50]} 17. Bg5+ {[%emt 0:01:11]} Ke8 {[%emt 0:04:39]} 18. Bxh6 {[%emt 0:04:49]} gxh6 {[%emt 0:00:05]} 19. Bxf7+ {[%emt 0:07:13]} Ke7 {[%emt 0:00:11]} 20. Nc3 {[%emt 0:01:00]} Nxe5 {[%emt 0:03:56]} 21. Rae1 {[%emt 0:00:32]} Kd6 {[%emt 0:02:37]} 22. Rf6+ {[%emt 0:00:16]} 1-0

[Event "Prague Open 2025"]
[Site "Prague"]
[Date "2025.01.10"]
[Round "1.10"]
[White "Kapolka, Juraj"]
[Black "Kulhanek, Tomas"]
[Result "0-1"]
[Annotator "ChessBase"]
[ECO "A05"]
[WhiteElo "1890"]
[BlackElo "2313"]
[PlyCount "110"]
[EventDate "2025.01.07"]
[EventType "swiss"]
[EventCountry "CZE"]
[SourceTitle "playchess.com"]
[Source "ChessBase"]
[SourceQuality "1"]
[TimeControl "40/5400+30:1800+30"]

1. Nf3 {[%emt 0:00:22]} Nf6 {[%emt 0:00:17]} 2. d4 {[%emt 0:00:26]} e6 {[%emt 0:00:57]} 3. Bf4 {[%emt 0:00:58]} c5 {[%emt 0:01:12]} 4. e3 {[%emt 0:00:32]} b6 {[%emt 0:01:21]} 5. c3 {[%emt 0:01:16]} Be7 {[%emt 0:00:45]} 6. Nbd2 {[%emt 0:02:16]} O-O {[%emt 0:01:58]} 7. Bd3 cxd4 {[%emt 0:00:38]} 8. exd4 {[%emt 0:01:48]} Ba6 {[%emt 0:00:35]} 9. Bxa6 {[%emt 0:06:43]} Nxa6 {[%emt 0:00:06]} 10. Ne5 {[%emt 0:04:38]} Qc8 {[%emt 0:04:18]} 11. Qe2 {[%emt 0:05:39]} d6 {[%emt 0:06:25]} 12. Nec4 {[%emt 0:06:59]} Rd8 {[%emt 0:00:12]} 13. O-O {[%emt 0:01:28]} b5 {[%emt 0:02:30]} 14. Ne3 {[%emt 0:00:55]} Nc7 {[%emt 0:00:53]} 15. Ng4 {[%emt 0:02:52]} Nfd5 {[%emt 0:07:34]} 16. Qf3 {[%emt 0:05:13]} Nxf4 {[%emt 0:11:11]} 17. Qxf4 {[%emt 0:00:20]} Nd5 {[%emt 0:00:40]} 18. Qg3 {[%emt 0:00:49]} Kh8 {[%emt 0:05:59]} 19. f4 f5 {[%emt 0:07:51]} 20. Ne3 {[%emt 0:03:41]} Nf6 {[%emt 0:05:19]} 21. Rae1 {[%emt 0:01:38]} Re8 {[%emt 0:06:37]} 22. Re2 {[%emt 0:04:09]} a5 {[%emt 0:03:35]} 23. Rfe1 {[%emt 0:00:23]} g6 {[%emt 0:00:22]} 24. d5 {[%emt 0:07:07]} Nh5 {[%emt 0:00:33]} 25. Qf2 {[%emt 0:03:42]} e5 {[%emt 0:00:50]} 26. g3 {[%emt 0:03:56]} Bf6 {[%emt 0:06:11]} 27. Ng2 {[%emt 0:02:16]} Rf8 {[%emt 0:10:52]} 28. fxe5 {[%emt 0:03:10]} dxe5 {[%emt 0:00:22]} 29. Nf3 {[%emt 0:04:00]} f4 {[%emt 0:02:11]} 30. gxf4 {[%emt 0:01:58]} exf4 {[%emt 0:01:05]} 31. Re4 {[%emt 0:03:40]} Qd7 {[%emt 0:03:24]} 32. Rd1 {[%emt 0:01:38]} g5 {[%emt 0:02:39]} 33. Qe2 {[%emt 0:02:29]} g4 {[%emt 0:03:07]} 34. Ne5 {[%emt 0:03:03]} Qa7+ {[%emt 0:01:36]} 35. Qf2 {[%emt 0:01:17]} Qxf2+ {[%emt 0:00:50]} 36. Kxf2 {[%emt 0:00:18]} f3 {[%emt 0:01:06]} 37. Nd7 {[%emt 0:02:09]} Rf7 {[%emt 0:00:59]} 38. Nxf6 {[%emt 0:00:31]} fxg2 {[%emt 0:00:50]} 39. Kxg2 {[%emt 0:00:47]} Nxf6 {[%emt 0:01:08]} 40. Re6 {[%emt 0:02:33]} Rd8 {[%emt 0:00:46]} 41. d6 {[%emt 0:30:34]} Kg7 {[%emt 0:03:28]} 42. Re5 {[%emt 0:00:00]} Rb7 {[%emt 0:02:34]} 43. Rd4 {[%emt 0:00:00]} Rdd7 {[%emt 0:02:04]} 44. Kg3 {[%emt 0:00:00]} Rb6 {[%emt 0:03:29]} 45. Rg5+ {[%emt 0:00:00]} Kf7 {[%emt 0:00:38]} 46. Rf5 {[%emt 0:00:00]} Rbxd6 {[%emt 0:03:34]} 47. Rxd6 {[%emt 0:00:00]} Rxd6 {[%emt 0:00:04]} 48. Rxb5 {[%emt 0:00:00]} Kg6 {[%emt 0:01:22]} 49. Rxa5 {[%emt 0:00:00]} Rd3+ {[%emt 0:00:33]} 50. Kg2 {[%emt 0:00:00]} Ne4 {[%emt 0:03:24]} 51. Rb5 {[%emt 0:00:00]} Rd2+ {[%emt 0:00:14]} 52. Kg1 {[%emt 0:00:00]} Ng5 {[%emt 0:00:18]} 53. Rb6+ {[%emt 0:00:00]} Kf5 {[%emt 0:02:22]} 54. Rb5+ {[%emt 0:00:00]} Kf4 {[%emt 0:00:32]} 55. Rb8 {[%emt 0:00:00]} Nf3+ {[%emt 0:00:15]} 0-1